[Event "15th Kesan Open 2017"]
[Site "Kesan"]
[Date "2017.08.15"]
[Round "5.5"]
[White "Diri, Reha"]
[Black "Markidis, Konstantinos"]
[Result "1/2-1/2"]
[ECO "C02"]
[WhiteElo "1982"]
[BlackElo "2350"]
[Annotator "NA"]
[PlyCount "61"]
[EventCountry "TUR"]
[SourceTitle "playchess.com"]
[Source "ChessBase"]
[SourceQuality "1"]
[TimeControl "5400+30"]

1. e4 {[%emt 0:00:30]} c5 {[%emt 0:01:00]} 2. Nf3 {[%emt 0:00:30]} e6 {[%emt 0:01:30]} 3. c3 {[%emt 0:00:30]} d5 {[%emt 0:01:30]} 4. e5 {[%emt 0:00:30]} Nc6 {[%emt 0:00:00]} 5. d4 {[%emt 0:00:30]} Bd7 {[%emt 0:00:00]} 6. a3 {[%emt 0:01:30] LiveBook: 805 Games} f6 {[%emt 0:01:30]} 7. Bd3 {[%emt 0:00:30]} fxe5 {[%emt 0:12:30]} 8. dxe5 {[%emt 0:04:30]} Nh6 {[%emt 0:04:30]} 9. O-O {[%emt 0:04:30]} Nf7 {[%emt 0:00:30]} 10. Re1 {[%emt 0:00:30]} g6 {[%emt 0:01:30]} 11. h3 {[%emt 0:04:30]} c4 {[%emt 0:10:30]} 12. Bc2 {[%emt 0:00:30]} Qb6 $14 {[%emt 0:00:30]} 13. Re2 {[%emt 0:09:30]} Bg7 {[%emt 0:04:30]} 14. Ba4 {[%emt 0:11:30]} O-O {[%emt 0:08:30]} 15. Bxc6 {[%emt 0:00:30]} Bxc6 {[%emt 0:00:30]} 16. Be3 {[%emt 0:00:30]} Qa5 {[%emt 0:01:30]} 17. Nd4 {[%emt 0:09:30]} Bxe5 {[%emt 0:02:30]} 18. Nxe6 {[%emt 0:01:30]} Rfe8 {[%emt 0:00:00]} 19. Nd4 {[%emt 0:01:30]} Ba4 {[%emt 0:01:00]} 20. Qe1 {[%emt 0:02:30]} Bg7 {[%emt 0:01:30]} 21. Nd2 {[%emt 0:00:30]} Ne5 {[%emt 0:00:30]} 22. N2f3 {[%emt 0:00:30]} Nd3 {[%emt 0:01:30]} 23. Qd2 {[%emt 0:01:30]} Qc7 {[%emt 0:02:30]} 24. b4 {[%emt 0:01:30]} Bd7 {[%emt 0:03:30]} 25. Ne1 {[%emt 0:01:30]} Rac8 {[%emt 0:00:30]} 26. Nef3 {[%emt 0:01:30]} a5 {[%emt 0:00:30]} 27. Rb1 {[%emt 0:01:30]} axb4 {[%emt 0:01:30]} 28. axb4 {[%emt 0:00:00]} Ra8 {[%emt 0:00:30]} 29. Bh6 {[%emt 0:03:00]} Rxe2 {[%emt 0:07:30]} 30. Nxe2 {[%emt 0:03:30]} Bf5 {[%emt 0:05:30]} 31. Bxg7 {[%emt 0:00:30]} 1/2-1/2

[Event "15th Kesan Open 2017"]
[Site "Kesan"]
[Date "2017.08.15"]
[Round "5.6"]
[White "Dimitrov, Atanas"]
[Black "Ozgur, Isa"]
[Result "0-1"]
[ECO "A43"]
[WhiteElo "2317"]
[BlackElo "1930"]
[Annotator "NA"]
[PlyCount "80"]
[EventCountry "TUR"]
[SourceTitle "playchess.com"]
[Source "ChessBase"]
[SourceQuality "1"]
[TimeControl "5400+30"]

1. d4 {[%emt 0:00:30]} Nf6 {[%emt 0:01:00]} 2. Nf3 {[%emt 0:00:30]} c5 {[%emt 0:00:30]} 3. d5 {[%emt 0:01:30]} b5 {[%emt 0:02:30]} 4. Bg5 {[%emt 0:01:30]} Qb6 {[%emt 0:00:30]} 5. Bxf6 {[%emt 0:01:30]} Qxf6 {[%emt 0:00:30]} 6. c3 {[%emt 0:00:30] LiveBook: 141 Games} d6 {[%emt 0:02:30]} 7. e4 {[%emt 0:00:30]} a6 {[%emt 0:01:30]} 8. Qc2 {[%emt 0:16:30]} (8. a4 $5 {[%cal Ra4b5]} b4 9. cxb4 $11) 8... Nd7 {[%emt 0:07:30]} 9. a4 {[%emt 0:01:30]} b4 {[%emt 0:09:00]} 10. Be2 $11 {[%emt 0:13:30]} Rb8 {[%emt 0:06:30]} 11. O-O {[%emt 0:00:30]} g5 {[%emt 0:01:30]} 12. Nfd2 {[%emt 0:02:30]} Ne5 {[%emt 0:04:30]} 13. Nc4 {[%emt 0:00:30]} Bg7 {[%emt 0:04:30]} 14. a5 {[%emt 0:14:30]} g4 {[%emt 0:17:30]} 15. Nxe5 {[%emt 0:01:30]} Qxe5 {[%emt 0:02:30]} 16. Rc1 {[%emt 0:13:30]} O-O {[%emt 0:04:30]} 17. Nd2 {[%emt 0:00:00]} f5 {[%emt 0:02:30]} 18. Nc4 {[%emt 0:07:00]} Qf6 {[%emt 0:07:30]} 19. Bd3 {[%emt 0:00:30]} fxe4 {[%emt 0:02:30]} 20. Bxe4 {[%emt 0:00:00]} Bf5 {[%emt 0:01:30]} 21. Bxf5 {[%emt 0:12:03]} Qxf5 {[%emt 0:00:00]} 22. Ne3 {[%emt 0:01:18]} Qxc2 {[%emt 0:01:00]} 23. Rxc2 {[%emt 0:00:01]} bxc3 {[%emt 0:00:30]} 24. bxc3 {[%emt 0:00:08]} h5 {[%emt 0:06:30]} 25. Ra3 {[%emt 0:01:48]} Rb1+ {[%emt 0:01:30]} 26. Nf1 {[%emt 0:00:02]} Rfb8 {[%emt 0:00:30]} 27. f3 {[%emt 0:03:34]} gxf3 {[%emt 0:00:30]} 28. gxf3 {[%emt 0:00:02]} R8b3 {[%emt 0:00:37]} 29. Rxb3 {[%emt 0:00:21]} Rxb3 {[%emt 0:00:23]} 30. Ng3 {[%emt 0:00:22]} Rxc3 {[%emt 0:00:30]} 31. Re2 {[%emt 0:00:41]} Rxf3 {[%emt 0:06:15]} 32. Rxe7 {[%emt 0:01:17]} h4 {[%emt 0:01:55]} 33. Kg2 {[%emt 0:01:10]} Ra3 {[%emt 0:01:15]} 34. Nf5 {[%emt 0:00:34]} h3+ {[%emt 0:00:22]} 35. Kf2 {[%emt 0:04:15]} Be5 {[%emt 0:01:54]} 36. Ra7 {[%emt 0:00:54]} Bxh2 {[%emt 0:05:53]} 37. Rxa6 {[%emt 0:00:56]} Be5 {[%emt 0:00:49]} 38. Nh6+ {[%emt 0:00:29]} Kh7 {[%emt 0:01:14]} 39. Ng4 {[%emt 0:00:02]} Bg3+ {[%emt 0:02:53]} 40. Ke2 {[%emt 0:00:18]} h2 {[%emt 0:00:54]} 0-1

[Event "15th Kesan Open 2017"]
[Site "Kesan"]
[Date "2017.08.15"]
[Round "5.7"]
[White "Rzayev, Askar Aliakbar"]
[Black "Buyukasik, Diyap"]
[Result "0-1"]
[ECO "D03"]
[WhiteElo "2072"]
[BlackElo "2285"]
[Annotator "NA"]
[PlyCount "62"]
[EventCountry "TUR"]
[SourceTitle "playchess.com"]
[Source "ChessBase"]
[SourceQuality "1"]
[TimeControl "5400+30"]

1. d4 {[%emt 0:10:30]} Nf6 {[%emt 0:01:00]} 2. Bg5 {[%emt 0:00:00]} e6 {[%emt 0:00:30]} 3. Nd2 {[%emt 0:00:00]} c5 {[%emt 0:01:30]} 4. e3 {[%emt 0:00:30]} Be7 {[%emt 0:02:30]} 5. Ngf3 {[%emt 0:00:30]} O-O {[%emt 0:01:30]} 6. Bd3 {[%emt 0:00:30]} d5 {[%emt 0:05:30]} 7. c3 {[%emt 0:00:00]} Nbd7 {[%emt 0:01:30]} 8. O-O {[%emt 0:00:00]} h6 {[%emt 0:02:30]} 9. Bh4 {[%emt 0:00:30]} a6 {[%emt 0:03:30]} 10. Ne5 {[%emt 0:01:30]} Nxe5 {[%emt 0:02:30]} 11. dxe5 {[%emt 0:00:30]} Nd7 {[%emt 0:00:30]} 12. Bg3 {[%emt 0:00:00]} b5 {[%emt 0:03:30]} 13. Qg4 {[%emt 0:05:00]} f5 {[%emt 0:01:30]} 14. exf6 {[%emt 0:01:30]} Nxf6 {[%emt 0:00:30]} 15. Qg6 $11 {[%emt 0:08:30]} Qe8 {[%emt 0:04:30]} 16. Qxe8 {[%emt 0:06:30]} Rxe8 {[%emt 0:00:30]} 17. a4 {[%emt 0:00:30]} Bd7 {[%emt 0:02:30]} 18. axb5 {[%emt 0:01:30]} axb5 {[%emt 0:00:30]} 19. Bg6 {[%emt 0:01:30]} Rec8 {[%emt 0:02:30]} 20. e4 {[%emt 0:03:30]} Be8 {[%emt 0:01:30]} 21. Bxe8 {[%emt 0:00:30]} Rxe8 {[%emt 0:00:30]} 22. exd5 {[%emt 0:03:30]} exd5 {[%emt 0:00:30]} 23. Rfe1 {[%emt 0:03:30]} Bf8 {[%emt 0:01:30]} 24. Kf1 {[%emt 0:08:30]} Rxe1+ {[%emt 0:03:30]} 25. Rxe1 {[%emt 0:00:30]} Ra2 {[%emt 0:00:00]} 26. Rb1 {[%emt 0:00:00]} Nd7 {[%emt 0:02:00]} 27. Ke2 {[%emt 0:05:00]} c4 {[%emt 0:02:30]} 28. Kd1 {[%emt 0:02:30]} Nc5 {[%emt 0:01:30]} 29. Kc2 {[%emt 0:10:30]} Nd3 {[%emt 0:02:30]} 30. Nf3 {[%emt 0:05:30]} Ba3 {[%emt 0:01:30]} 31. Nd4 {[%emt 0:02:30]} Bxb2 {[%emt 0:00:30]} 0-1

[Event "15th Kesan Open 2017"]
[Site "Kesan"]
[Date "2017.08.15"]
[Round "5.8"]
[White "Ozalp, Burak"]
[Black "Aydin, Hakan Arda"]
[Result "1-0"]
[ECO "C54"]
[WhiteElo "2129"]
[BlackElo "1735"]
[Annotator "NA"]
[PlyCount "133"]
[EventCountry "TUR"]
[SourceTitle "playchess.com"]
[Source "ChessBase"]
[SourceQuality "1"]
[TimeControl "5400+30"]

1. e4 {[%emt 0:05:30]} e5 {[%emt 0:01:00]} 2. Nf3 {[%emt 0:00:30]} Nc6 {[%emt 0:00:00]} 3. Bc4 {[%emt 0:00:00]} Nf6 {[%emt 0:00:00]} 4. d3 {[%emt 0:00:00]} Bc5 {[%emt 0:00:30]} 5. c3 {[%emt 0:00:30]} d6 {[%emt 0:00:30]} 6. O-O {[%emt 0:00:00]} O-O {[%emt 0:00:30]} 7. Bb3 {[%emt 0:00:00]} a6 {[%emt 0:00:30]} 8. Nbd2 {[%emt 0:01:30]} Ba7 {[%emt 0:00:30]} 9. Re1 {[%emt 0:01:30] LiveBook: 256 Games} Ng4 {[%emt 0:00:30]} 10. Re2 {[%emt 0:00:30]} Nf6 {[%emt 0:00:30]} 11. h3 {[%emt 0:00:30]} h6 {[%emt 0:05:30]} 12. Nf1 {[%emt 0:00:30]} Nh5 {[%emt 0:00:30]} 13. Re1 {[%emt 0:00:30]} Qf6 $11 {[%emt 0:01:30]} 14. Be3 {[%emt 0:02:30]} Nf4 {[%emt 0:04:30]} 15. d4 {[%emt 0:00:30]} Ne7 {[%emt 0:05:30]} 16. Ng3 {[%emt 0:00:30]} g6 {[%emt 0:05:30]} 17. Bxf4 {[%emt 0:03:30]} Qxf4 {[%emt 0:01:30]} 18. Rc1 {[%emt 0:16:30]} Kh8 {[%emt 0:19:30]} 19. Nf1 {[%emt 0:02:30]} Qf6 {[%emt 0:02:30]} 20. Ne3 {[%emt 0:01:30]} Nc6 {[%emt 0:21:30]} 21. Nd5 {[%emt 0:01:30]} Qd8 {[%emt 0:00:30]} 22. Qd2 {[%emt 0:00:30]} Kg7 {[%emt 0:00:30]} 23. Rcd1 {[%emt 0:03:30]} f6 {[%emt 0:03:30]} 24. a4 {[%emt 0:02:30]} Be6 {[%emt 0:02:30]} 25. Ba2 {[%emt 0:00:30]} Ne7 {[%emt 0:02:30]} 26. b4 {[%emt 0:03:30]} Nxd5 {[%emt 0:00:30]} 27. exd5 {[%emt 0:00:30]} Bd7 {[%emt 0:00:30]} 28. a5 {[%emt 0:00:30]} Re8 {[%emt 0:00:30]} 29. Bb1 {[%emt 0:01:30]} Re7 {[%emt 0:04:45]} 30. Nh4 {[%emt 0:09:30]} f5 {[%emt 0:01:13]} 31. Nf3 {[%emt 0:04:30]} e4 {[%emt 0:03:38]} 32. Nh2 {[%emt 0:01:30]} Bb5 {[%emt 0:01:53]} 33. f3 {[%emt 0:02:30]} exf3 {[%emt 0:05:20]} 34. Nxf3 {[%emt 0:01:30]} Qd7 {[%emt 0:00:08]} 35. Rxe7+ {[%emt 0:03:30]} Qxe7 {[%emt 0:00:02]} 36. Re1 {[%emt 0:00:00]} Qd7 {[%emt 0:00:23]} 37. Re6 {[%emt 0:02:00]} Re8 {[%emt 0:01:12]} 38. Bxf5 {[%emt 0:02:30]} Rxe6 {[%emt 0:01:08]} 39. Bxe6 {[%emt 0:00:30]} Qe7 {[%emt 0:00:27]} 40. Nh2 {[%emt 0:05:30]} h5 {[%emt 0:00:54]} 41. Nf3 {[%emt 0:00:30]} Bc4 {[%emt 0:01:23]} 42. Ng5 {[%emt 0:01:30]} c6 {[%emt 0:01:07]} 43. h4 {[%emt 0:15:41]} Bxd5 {[%emt 0:00:58]} 44. Bxd5 {[%emt 0:00:28]} cxd5 {[%emt 0:00:01]} 45. Qf4 {[%emt 0:01:19]} Bb8 {[%emt 0:00:51]} 46. Kh2 {[%emt 0:00:30]} Qf6 {[%emt 0:02:43]} 47. Qxf6+ {[%emt 0:00:30]} Kxf6 {[%emt 0:00:10]} 48. Kg3 {[%emt 0:00:00]} Bc7 {[%emt 0:00:22]} 49. Nh3 {[%emt 0:01:59]} Kf5 {[%emt 0:00:19]} 50. Kf3 {[%emt 0:00:21]} Bd8 {[%emt 0:00:15]} 51. Nf4 {[%emt 0:01:02]} Bxh4 {[%emt 0:00:43]} 52. Nxd5 {[%emt 0:00:07]} Bd8 {[%emt 0:02:26]} 53. Ne3+ {[%emt 0:00:22]} Ke6 {[%emt 0:00:41]} 54. Ke4 {[%emt 0:00:01]} g5 {[%emt 0:00:00]} 55. d5+ {[%emt 0:00:20]} Kf6 {[%emt 0:00:17]} 56. Nf5 {[%emt 0:00:49]} Bc7 {[%emt 0:00:16]} 57. Nd4 {[%emt 0:00:43]} Bd8 {[%emt 0:00:39]} 58. c4 {[%emt 0:00:42]} Be7 {[%emt 0:00:27]} 59. b5 {[%emt 0:01:37]} h4 {[%emt 0:00:36]} 60. Nc6 {[%emt 0:01:24]} Bf8 {[%emt 0:00:42]} 61. Nd8 {[%emt 0:00:25]} Bh6 {[%emt 0:00:42]} 62. Nxb7 {[%emt 0:00:40]} g4 {[%emt 0:00:22]} 63. bxa6 {[%emt 0:01:43]} h3 {[%emt 0:00:38]} 64. gxh3 {[%emt 0:00:30]} gxh3 {[%emt 0:00:30]} 65. Kf3 {[%emt 0:00:00]} h2 {[%emt 0:00:00]} 66. Kg2 {[%emt 0:00:00]} Be3 {[%emt 0:00:00]} 67. c5 {[%emt 0:00:00]} 1-0

[Event "15th Kesan Open 2017"]
[Site "Kesan"]
[Date "2017.08.15"]
[Round "5.10"]
[White "Guseynov, Alihan"]
[Black "Ozkan, Hakan"]
[Result "1-0"]
[ECO "E01"]
[WhiteElo "2399"]
[BlackElo "1794"]
[Annotator "NA"]
[PlyCount "85"]
[EventCountry "TUR"]
[SourceTitle "playchess.com"]
[Source "ChessBase"]
[SourceQuality "1"]
[TimeControl "5400+30"]

1. c4 {[%emt 0:00:30]} e6 {[%emt 0:01:00]} 2. Nf3 {[%emt 0:00:30]} Nf6 {[%emt 0:00:30]} 3. g3 {[%emt 0:02:30]} d5 {[%emt 0:00:00]} 4. Bg2 {[%emt 0:00:30]} Nbd7 {[%emt 0:02:00]} 5. b3 {[%emt 0:02:30]} Bd6 {[%emt 0:02:30]} 6. Bb2 {[%emt 0:00:30]} O-O {[%emt 0:00:30]} 7. O-O {[%emt 0:03:30]} Re8 {[%emt 0:00:30]} 8. d4 {[%emt 0:01:30]} c6 {[%emt 0:01:30]} 9. Nbd2 {[%emt 0:03:30]} b6 {[%emt 0:00:30]} 10. Qc2 {[%emt 0:06:30]} Bb7 {[%emt 0:02:30] LiveBook: 3 Games} 11. e4 {[%emt 0:04:30]} Nxe4 {[%emt 0:00:00]} 12. Nxe4 {[%emt 0:00:00]} dxe4 {[%emt 0:00:00]} 13. Qxe4 {[%emt 0:00:00]} Nf6 {[%emt 0:00:30]} 14. Qc2 {[%emt 0:00:30]} c5 {[%emt 0:04:30]} 15. Rad1 {[%emt 0:08:30]} cxd4 $14 {[%emt 0:05:30]} 16. Nxd4 {[%emt 0:13:30]} Bxg2 {[%emt 0:02:30]} 17. Kxg2 {[%emt 0:00:30]} Qc7 {[%emt 0:03:30]} 18. Qe2 {[%emt 0:02:30]} Rad8 {[%emt 0:06:30]} 19. Nb5 {[%emt 0:13:30]} Qb7+ {[%emt 0:03:30]} 20. Qf3 {[%emt 0:00:30]} Qxf3+ {[%emt 0:00:30]} 21. Kxf3 {[%emt 0:00:00]} Bb8 {[%emt 0:08:30]} 22. Ba3 {[%emt 0:02:00]} a6 {[%emt 0:02:30]} 23. Nd6 {[%emt 0:03:30]} Bxd6 {[%emt 0:03:30]} 24. Bxd6 {[%emt 0:04:30]} Rd7 {[%emt 0:03:30]} 25. Ke2 {[%emt 0:04:30]} Ne4 {[%emt 0:03:30]} 26. Be5 {[%emt 0:00:30]} Red8 {[%emt 0:00:30]} 27. f3 {[%emt 0:00:30]} Nc5 {[%emt 0:07:30]} 28. Bc7 {[%emt 0:01:30]} Rxd1 {[%emt 0:01:30]} 29. Rxd1 {[%emt 0:00:30]} Rxd1 {[%emt 0:00:30]} 30. Kxd1 {[%emt 0:00:00]} Nd7 {[%emt 0:00:30]} 31. a4 {[%emt 0:02:00]} Kf8 {[%emt 0:01:30]} 32. b4 {[%emt 0:02:19]} Ke7 {[%emt 0:00:30]} 33. f4 {[%emt 0:02:02]} f6 {[%emt 0:02:30]} 34. Kd2 {[%emt 0:09:06]} h6 {[%emt 0:04:30]} 35. c5 {[%emt 0:01:19]} Nxc5 {[%emt 0:04:30]} 36. bxc5 {[%emt 0:00:13]} bxc5 {[%emt 0:00:30]} 37. Kd3 {[%emt 0:00:12]} Kd7 {[%emt 0:00:00]} 38. Bb8 {[%emt 0:00:06]} Kc6 {[%emt 0:01:00]} 39. Kc4 {[%emt 0:00:04]} g5 {[%emt 0:00:30]} 40. Ba7 {[%emt 0:00:12]} h5 {[%emt 0:00:30]} 41. Bxc5 {[%emt 0:00:34]} gxf4 {[%emt 0:01:30]} 42. gxf4 {[%emt 0:00:05]} e5 {[%emt 0:00:30]} 43. f5 {[%emt 0:00:10]} 1-0

[Event "15th Kesan Open 2017"]
[Site "Kesan"]
[Date "2017.08.16"]
[Round "6.2"]
[White "Buyukasik, Diyap"]
[Black "Ozalp, Burak"]
[Result "1-0"]
[ECO "A26"]
[WhiteElo "2285"]
[BlackElo "2129"]
[Annotator "RC"]
[PlyCount "95"]
[EventCountry "TUR"]
[SourceTitle "playchess.com"]
[Source "ChessBase"]
[SourceQuality "1"]
[TimeControl "5400+30"]

1. Nf3 {[%emt 0:00:30]} g6 {[%emt 0:07:00]} 2. g3 {[%emt 0:00:30]} Bg7 {[%emt 0:01:30]} 3. c4 {[%emt 0:01:30]} d6 {[%emt 0:00:30]} 4. Nc3 {[%emt 0:01:30]} Nc6 {[%emt 0:01:30]} 5. Bg2 {[%emt 0:00:00]} e5 {[%emt 0:00:30]} 6. O-O {[%emt 0:00:00]} f5 {[%emt 0:00:00]} 7. d3 {[%emt 0:00:30]} Nf6 {[%emt 0:00:00]} 8. Rb1 {[%emt 0:00:00]} O-O {[%emt 0:00:30]} 9. b4 {[%emt 0:00:00]} h6 {[%emt 0:01:30]} 10. b5 {[%emt 0:01:30]} Ne7 {[%emt 0:00:00]} 11. a4 {[%emt 0:02:30]} g5 {[%emt 0:07:00]} 12. Nd2 {[%emt 0:05:30]} Rb8 {[%emt 0:02:30]} 13. Ba3 {[%emt 0:08:30]} b6 {[%emt 0:04:30]} 14. Nb3 {[%emt 0:05:30]} Be6 {[%emt 0:05:30]} 15. Na2 {[%emt 0:12:30]} f4 {[%emt 0:05:30]} 16. d4 {[%emt 0:04:30]} e4 {[%emt 0:03:30]} 17. d5 {[%emt 0:15:30]} Bf5 {[%emt 0:03:30]} 18. Nd4 {[%emt 0:02:30]} Qd7 {[%emt 0:02:30]} 19. Rb3 {[%emt 0:02:30]} e3 {[%emt 0:06:30]} 20. gxf4 {[%emt 0:10:30]} exf2+ {[%emt 0:01:30]} 21. Kh1 {[%emt 0:01:30]} Ng6 {[%emt 0:05:30]} 22. fxg5 {[%emt 0:00:30]} hxg5 {[%emt 0:00:30]} 23. Nxf5 {[%emt 0:09:09]} Qxf5 {[%emt 0:01:30]} 24. Rf3 {[%emt 0:00:10]} Qe5 {[%emt 0:01:30]} 25. Qc2 {[%emt 0:01:17]} Ng4 {[%emt 0:06:30]} 26. Rg3 {[%emt 0:01:03]} Ne3 {[%emt 0:01:30]} 27. Qxg6 {[%emt 0:00:30]} Nxf1 {[%emt 0:00:30]} 28. Bxf1 {[%emt 0:00:25]} Rbe8 {[%emt 0:18:33]} 29. Qxg5 {[%emt 0:03:12]} Qxg5 {[%emt 0:02:29]} 30. Rxg5 {[%emt 0:00:01]} Kh7 {[%emt 0:01:42]} 31. Bc1 {[%emt 0:01:37]} Re4 {[%emt 0:02:07]} 32. e3 {[%emt 0:00:16]} Rh4 {[%emt 0:00:22]} 33. Kg2 {[%emt 0:02:02]} Bf6 {[%emt 0:06:12]} 34. Rf5 {[%emt 0:01:04]} Rg8+ {[%emt 0:00:44]} 35. Kf3 {[%emt 0:00:02]} Be5 {[%emt 0:01:27]} 36. h3 {[%emt 0:01:44]} Kg6 {[%emt 0:01:03]} 37. e4 {[%emt 0:00:05]} Kh7 {[%emt 0:00:20]} 38. Kxf2 {[%emt 0:00:56]} Kh8 {[%emt 0:00:51]} 39. Bg2 {[%emt 0:01:17]} Bd4+ {[%emt 0:00:32]} 40. Kf3 {[%emt 0:00:38]} Be5 {[%emt 0:00:34]} 41. Bg5 {[%emt 0:00:24]} Rh7 {[%emt 0:00:23]} 42. h4 {[%emt 0:00:23]} Kg7 {[%emt 0:00:30]} 43. Nb4 {[%emt 0:00:16]} Rf8 {[%emt 0:00:22]} 44. Bh3 {[%emt 0:00:26]} Bf6 {[%emt 0:00:10]} 45. Kg4 {[%emt 0:00:52]} Bxg5 {[%emt 0:00:18]} 46. Rxg5+ {[%emt 0:01:55]} Kh8 {[%emt 0:00:13]} 47. Nd3 {[%emt 0:00:21]} Re7 {[%emt 0:00:21]} 48. e5 {[%emt 0:00:14]} 1-0

[Event "15th Kesan Open 2017"]
[Site "Kesan"]
[Date "2017.08.16"]
[Round "6.8"]
[White "Markidis, Konstantinos"]
[Black "Korkmaz, Turhan"]
[Result "1-0"]
[ECO "B51"]
[WhiteElo "2350"]
[BlackElo "1867"]
[Annotator "ChessBase"]
[PlyCount "117"]
[EventCountry "TUR"]
[SourceTitle "playchess.com"]
[Source "ChessBase"]
[SourceQuality "1"]
[TimeControl "5400+30"]

1. e4 {[%emt 0:00:30]} c5 {[%emt 0:01:00]} 2. Nf3 {[%emt 0:00:30]} d6 {[%emt 0:00:30]} 3. Bb5+ {[%emt 0:00:00]} Nd7 {[%emt 0:01:30]} 4. c3 {[%emt 0:01:00]} a6 {[%emt 0:04:30]} 5. Ba4 {[%emt 0:00:30]} b5 {[%emt 0:02:30]} 6. Bc2 {[%emt 0:00:30]} Bb7 {[%emt 0:04:30]} 7. d4 {[%emt 0:00:30]} e6 {[%emt 0:01:30]} 8. O-O {[%emt 0:00:30]} Be7 {[%emt 0:03:30]} 9. Re1 {[%emt 0:00:30]} Qc7 {[%emt 0:07:30]} 10. Nbd2 {[%emt 0:01:30]} Ngf6 {[%emt 0:02:30]} 11. Nf1 {[%emt 0:04:30]} O-O {[%emt 0:01:30]} 12. Ng3 {[%emt 0:01:30]} Rad8 {[%emt 0:02:30]} 13. Qe2 {[%emt 0:04:30]} Rfe8 {[%emt 0:04:30]} 14. a4 {[%emt 0:04:30]} c4 {[%emt 0:05:30]} 15. Bd2 {[%emt 0:03:30]} Bf8 {[%emt 0:00:30]} 16. h3 {[%emt 0:14:30]} g6 {[%emt 0:01:30]} 17. Be3 {[%emt 0:01:30]} h5 {[%emt 0:01:30]} 18. Bg5 {[%emt 0:00:30]} e5 {[%emt 0:01:30]} 19. Qd2 {[%emt 0:03:30]} Kh7 {[%emt 0:04:30]} 20. b4 {[%emt 0:07:30]} Bg7 {[%emt 0:05:30]} 21. d5 {[%emt 0:16:30]} Ra8 {[%emt 0:02:30]} 22. Be3 {[%emt 0:04:30]} Rf8 {[%emt 0:03:30]} 23. Rf1 {[%emt 0:01:30]} Qd8 {[%emt 0:06:30]} 24. Ra3 {[%emt 0:03:30]} Ng8 {[%emt 0:08:30]} 25. Ng5+ {[%emt 0:00:30]} Kh8 {[%emt 0:01:30]} 26. Rfa1 {[%emt 0:00:30]} Qe7 {[%emt 0:02:30]} 27. Qc1 {[%emt 0:00:30]} Ndf6 {[%emt 0:03:03]} 28. R1a2 {[%emt 0:07:53]} Nh7 {[%emt 0:03:03]} 29. Nxh7 {[%emt 0:01:36]} Kxh7 {[%emt 0:00:24]} 30. Qa1 {[%emt 0:00:32]} h4 {[%emt 0:02:00]} 31. Nf1 {[%emt 0:00:58]} f5 {[%emt 0:03:37]} 32. f3 {[%emt 0:00:43]} f4 {[%emt 0:02:58]} 33. Bf2 {[%emt 0:00:23]} Rab8 {[%emt 0:01:27]} 34. axb5 {[%emt 0:00:37]} axb5 {[%emt 0:00:01]} 35. Ra7 {[%emt 0:00:33]} Qg5 {[%emt 0:00:25]} 36. Qe1 {[%emt 0:01:07]} Bf6 {[%emt 0:00:26]} 37. R2a6 {[%emt 0:00:18]} Rfd8 {[%emt 0:05:21]} 38. Rb6 {[%emt 0:00:52]} Rd7 {[%emt 0:00:01]} 39. Rxb5 {[%emt 0:00:02]} Ne7 {[%emt 0:00:14]} 40. Ra1 {[%emt 0:01:02]} Qh6 {[%emt 0:02:06]} 41. Bd1 {[%emt 0:00:35]} g5 {[%emt 0:00:36]} 42. Nd2 {[%emt 0:00:58]} Rc7 {[%emt 0:01:19]} 43. Be2 {[%emt 0:00:19]} Rbc8 {[%emt 0:00:51]} 44. Ra7 {[%emt 0:00:25]} Ba8 {[%emt 0:00:23]} 45. Rxc7 {[%emt 0:00:57]} Rxc7 {[%emt 0:00:01]} 46. Nxc4 {[%emt 0:00:01]} Bg7 {[%emt 0:00:30]} 47. Rb8 {[%emt 0:00:46]} Bb7 {[%emt 0:00:13]} 48. Bb6 {[%emt 0:00:53]} Rd7 {[%emt 0:00:35]} 49. Na5 {[%emt 0:00:13]} Bxd5 {[%emt 0:01:22]} 50. exd5 {[%emt 0:00:10]} e4 {[%emt 0:00:15]} 51. Bb5 {[%emt 0:00:25]} Nxd5 {[%emt 0:00:41]} 52. Bxd7 {[%emt 0:00:18]} Qf6 {[%emt 0:00:33]} 53. Qxe4+ {[%emt 0:00:58]} Kh6 {[%emt 0:00:00]} 54. Qxd5 {[%emt 0:00:06]} Qxc3 {[%emt 0:00:05]} 55. Qxd6+ {[%emt 0:00:38]} Bf6 {[%emt 0:00:02]} 56. Rh8+ {[%emt 0:00:59]} Kg6 {[%emt 0:00:08]} 57. Be8+ {[%emt 0:00:30]} Kf5 {[%emt 0:00:14]} 58. Qd5+ {[%emt 0:00:13]} Be5 {[%emt 0:00:46]} 59. Rf8# {[%emt 0:00:06]} 1-0

[Event "15th Kesan Open 2017"]
[Site "Kesan"]
[Date "2017.08.16"]
[Round "6.10"]
[White "Tereladze, Sopiko"]
[Black "Donmez, Taha Mert"]
[Result "1-0"]
[ECO "A42"]
[WhiteElo "2172"]
[BlackElo "1918"]
[Annotator "RC"]
[PlyCount "67"]
[EventCountry "TUR"]
[SourceTitle "playchess.com"]
[Source "ChessBase"]
[SourceQuality "1"]
[TimeControl "5400+30"]

1. d4 {[%emt 0:14:30]} g6 {[%emt 0:01:00]} 2. c4 {[%emt 0:00:30]} Bg7 {[%emt 0:00:00]} 3. Nc3 {[%emt 0:00:30]} d6 {[%emt 0:00:00]} 4. e4 {[%emt 0:00:30]} Nc6 {[%emt 0:01:30]} 5. Nf3 {[%emt 0:00:30]} Bg4 {[%emt 0:05:30]} 6. Be3 {[%emt 0:09:30]} e5 {[%emt 0:00:00]} 7. d5 {[%emt 0:00:30]} Nd4 {[%emt 0:00:00]} 8. h3 {[%emt 0:01:30]} Bxf3 {[%emt 0:04:30]} 9. gxf3 {[%emt 0:00:00]} Ne7 {[%emt 0:00:30]} 10. f4 {[%emt 0:08:00]} c5 {[%emt 0:03:30]} 11. fxe5 {[%emt 0:00:30]} Bxe5 {[%emt 0:01:30]} 12. h4 {[%emt 0:05:30]} Qa5 {[%emt 0:24:30]} 13. f4 {[%emt 0:09:30]} Bg7 {[%emt 0:02:30]} 14. h5 {[%emt 0:08:30]} f5 {[%emt 0:05:30]} 15. h6 {[%emt 0:13:30]} Bf6 {[%emt 0:00:30]} 16. Qd3 {[%emt 0:00:30]} Nf3+ {[%emt 0:10:30]} 17. Kf2 {[%emt 0:00:30]} Nd4 {[%emt 0:01:30]} 18. Bh3 {[%emt 0:08:34]} Qb6 {[%emt 0:11:30]} 19. Rab1 {[%emt 0:02:06]} O-O {[%emt 0:02:30]} 20. b4 {[%emt 0:04:36]} Qa6 {[%emt 0:13:33]} 21. bxc5 {[%emt 0:00:53]} fxe4 {[%emt 0:01:23]} 22. Nxe4 {[%emt 0:03:42]} Qxa2+ {[%emt 0:00:56]} 23. Qd2 {[%emt 0:00:21]} Qxd2+ {[%emt 0:03:14]} 24. Bxd2 {[%emt 0:00:11]} dxc5 {[%emt 0:00:55]} 25. Rxb7 {[%emt 0:00:36]} Nef5 {[%emt 0:01:23]} 26. Nxf6+ {[%emt 0:02:15]} Rxf6 {[%emt 0:00:30]} 27. Ra1 {[%emt 0:00:06]} a6 {[%emt 0:02:44]} 28. Bxf5 {[%emt 0:00:35]} Nxf5 {[%emt 0:00:35]} 29. Ra5 {[%emt 0:01:19]} Nd6 {[%emt 0:00:42]} 30. Rg7+ {[%emt 0:01:50]} Kh8 {[%emt 0:00:15]} 31. Kf3 {[%emt 0:00:35]} Raf8 {[%emt 0:01:53]} 32. Rxa6 {[%emt 0:00:25]} Nf5 {[%emt 0:00:52]} 33. Raa7 {[%emt 0:00:07]} Nd4+ {[%emt 0:00:34]} 34. Kg4 {[%emt 0:00:44]} 1-0